fUST/lending_fUST_20250606
["ID","MTS","AMOUNT","RATE_DAILY","PERIOD"]
[364738914,1749223841504,-440.0,0.00019452,2]
[364738915,1749223841514,-440.0,0.00019452,2]
[364738916,1749223841524,-440.0,0.00019452,2]
[364738917,1749223841534,-440.0,0.00019452,2]
[364738918,1749223841544,-440.0,0.00019452,2]
[364738919,1749223841554,-440.0,0.00019452,2]
[364738920,1749223841565,-408.81195213,0.00019452,2]
[364738921,1749223841577,-440.0,0.00019452,2]
[364738922,1749223841587,-410.0,0.00019452,2]
[364738923,1749223841597,-440.0,0.00019452,2]
[364738924,1749223841607,-440.0,0.00019452,2]
[364738925,1749223841618,-1802.88,0.00019452,2]
[364738926,1749223841628,-214.2164084,0.00019452,2]
[364738927,1749223841638,-420.0,0.00019452,2]
[364738928,1749223841647,-440.0,0.00019452,2]
[364738929,1749223841657,-227.80654649,0.00019452,2]
[364738930,1749223841667,-440.0,0.00019452,2]
[364738931,1749223841676,-440.0,0.00019452,2]
[364738932,1749223841686,-440.0,0.00019452,2]
[364738933,1749223841696,-440.0,0.00019452,2]
[364738934,1749223841706,-562.49,0.00019452,2]
[364738935,1749223841717,-831.48,0.00019452,2]
[364738936,1749223841727,-440.0,0.00019452,2]
[364738937,1749223841736,-440.0,0.00019452,2]
[364738938,1749223841746,-349.20385302,0.00019452,2]
[364738939,1749223841755,-290.0,0.00019452,2]
[364738940,1749223841764,-420.0,0.00019452,2]
[364738941,1749223841774,-440.0,0.00019452,2]
[364738942,1749223841783,-5296.18,0.00019452,2]
[364738943,1749223841792,-440.0,0.00019452,2]
[364738944,1749223841802,-440.0,0.00019452,2]
[364738945,1749223841811,-296.81927653,0.00019452,2]
[364738946,1749223841820,-440.0,0.00019452,2]
[364738947,1749223841830,-2045.12,0.00019452,2]
[364738948,1749223841839,-420.0,0.00019452,2]
[364738949,1749223841848,-441.66,0.00019452,2]
[364738950,1749223841858,-420.0,0.00019452,2]
[364738951,1749223841867,-440.0,0.00019452,2]
[364738952,1749223841876,-440.0,0.00019452,2]
[364738953,1749223841886,-1764.13,0.00019452,2]
[364738954,1749223841895,-440.0,0.00019452,2]
[364738955,1749223841904,-440.0,0.00019452,2]
[364738956,1749223841914,-1492.68,0.00019452,2]
[364738957,1749223841923,-1126.0,0.00019452,2]
[364738958,1749223841932,-440.0,0.00019452,2]
[364738959,1749223841942,-440.0,0.00019452,2]
[364738960,1749223841951,-440.0,0.00019452,2]
[364738961,1749223841960,-440.0,0.00019452,2]
[364738962,1749223841970,-440.0,0.00019452,2]
[364738963,1749223841979,-440.0,0.00019452,2]
[364738964,1749223841989,-440.0,0.00019452,2]
[364738965,1749223841998,-440.0,0.00019452,2]
[364738966,1749223842007,-440.0,0.00019452,2]
[364738967,1749223842016,-440.0,0.00019452,2]
[364738968,1749223842026,-440.0,0.00019452,2]
[364738969,1749223842035,-420.0,0.00019452,2]
[364738970,1749223842045,-440.0,0.00019452,2]
[364738971,1749223842054,-2306.82,0.00019452,2]
[364738972,1749223842063,-520.92862774,0.00019452,2]
[364738973,1749223842073,-440.0,0.00019452,2]
[364738974,1749223842083,-440.0,0.00019452,2]
[364738975,1749223842092,-440.0,0.00019452,2]
[364738976,1749223842102,-440.0,0.00019452,2]
[364738977,1749223842112,-440.0,0.00019452,2]
[364738979,1749223842122,-511.2640321,0.00019452,2]
[364738981,1749223842132,-440.0,0.00019452,2]
[364738983,1749223842141,-438.26906686,0.00019452,2]
[364738985,1749223842151,-440.0,0.00019452,2]
[364738987,1749223842161,-685.82,0.00019452,2]
[364738989,1749223842171,-440.0,0.00019452,2]
[364738991,1749223842181,-2874.28,0.00019452,2]
[364738993,1749223842191,-440.0,0.00019452,2]
[364738995,1749223842200,-440.0,0.00019452,2]
[364738997,1749223842211,-420.0,0.00019452,2]
[364738999,1749223842222,-420.0,0.00019452,2]
[364739002,1749223842232,-3776.46,0.00019452,2]
[364739004,1749223842243,-440.0,0.00019452,2]
[364739005,1749223842252,-465.99,0.00019452,2]
[364739007,1749223842262,-420.0,0.00019452,2]
[364739010,1749223842272,-440.0,0.00019452,2]
[364739011,1749223842282,-440.0,0.00019452,2]
[364739013,1749223842292,-1767.71,0.00019452,2]
[364739016,1749223842302,-403.24721748,0.00019452,2]
[364739018,1749223842311,-485.03727033,0.00019452,2]
[364739019,1749223842320,-440.0,0.00019452,2]
[364739022,1749223842330,-455.73,0.00019452,2]
[364739024,1749223842340,-2864.87,0.00019452,2]
[364739026,1749223842350,-306.09468771,0.00019452,2]
[364739028,1749223842360,-440.0,0.00019452,2]
[364739030,1749223842369,-420.0,0.00019452,2]
[364739032,1749223842379,-440.0,0.00019452,2]
[364739034,1749223842389,-440.0,0.00019452,2]
[364739036,1749223842399,-440.0,0.00019452,2]
[364739038,1749223842409,-440.0,0.00019452,2]
[364739040,1749223842420,-1011.19,0.00019452,2]
[364739042,1749223842429,-420.0,0.00019452,2]
[364739044,1749223842439,-2220.42,0.00019452,2]
[364739046,1749223842449,-440.0,0.00019452,2]
[364739048,1749223842458,-440.0,0.00019452,2]
[364739050,1749223842468,-440.0,0.00019452,2]
[364739052,1749223842478,-5587.47,0.00019452,2]
[364739054,1749223842488,-503.10535846,0.00019473,2]
[364739056,1749223842498,-500.0,0.00019473,2]
[364739058,1749223842507,-500.72993794,0.00019473,2]
[364739060,1749223842517,-500.0,0.00019473,2]
[364739062,1749223842527,-407.67132712,0.00019473,2]
[364739073,1749223842624,-162.62222266,0.00019473,2]
[364739075,1749223842647,-501.03216252,0.00019473,2]
[364739077,1749223842656,-500.0,0.00019473,2]
[364739079,1749223842666,-1200.0,0.00019666,2]
[364739081,1749223842675,-2190.88161836,0.00019712,2]
[364739083,1749223842686,-500.0,0.00019721,2]
[364739085,1749223842696,-1079.6233432,0.00019721,2]
[364739087,1749223842705,-1000.0,0.00019721,2]
[364739089,1749223842714,-1000.0,0.00019721,2]
[364739091,1749223842725,-1000.0,0.00019721,2]
[364739092,1749223842734,-1000.0,0.00019721,2]
[364739094,1749223842744,-1000.0,0.00019721,2]
[364739096,1749223842754,-500.0,0.00019721,2]
[364739098,1749223842763,-438.33273321,0.00019721,2]
[364739100,1749223842772,-1000.0,0.00019721,2]
[364739102,1749223842781,-500.0,0.00019721,2]
[364739104,1749223842791,-1000.0,0.00019721,2]
[364739106,1749223842800,-500.0,0.00019721,2]
[364739108,1749223842810,-1000.0,0.00019721,2]
[364739110,1749223842819,-440.0,0.00019726,2]
[364739112,1749223842829,-410.0,0.00019726,2]
[364739114,1749223842838,-440.0,0.00019726,2]
[364739116,1749223842847,-410.0,0.00019726,2]
[364739117,1749223842857,-410.0,0.00019726,2]
[364739119,1749223842866,-440.0,0.00019726,2]
[364739121,1749223842876,-440.0,0.00019726,2]
[364739123,1749223842885,-302.49924613,0.00019726,2]
[364739125,1749223842894,-440.0,0.00019726,2]
[364739127,1749223842904,-228.9505723,0.00019726,2]
[364739129,1749223842914,-440.0,0.00019726,2]
[364739131,1749223842923,-440.0,0.00019726,2]
[364739132,1749223842932,-470.64716713,0.00019726,2]
[364739133,1749223842941,-440.0,0.00019726,2]
[364739134,1749223842950,-440.0,0.00019726,2]
[364739135,1749223842959,-440.0,0.00019726,2]
[364739137,1749223842969,-366.72071813,0.00019726,2]
[364739138,1749223842979,-440.0,0.00019726,2]
[364739140,1749223842988,-440.0,0.00019726,2]
[364739142,1749223842998,-440.0,0.00019726,2]
[364739143,1749223843007,-440.0,0.00019726,2]
[364739144,1749223843018,-194.23736188,0.00019726,2]
[364739145,1749223843027,-440.0,0.00019726,2]
[364739146,1749223843037,-410.0,0.00019726,2]
[364739147,1749223843047,-410.0,0.00019726,2]
[364739148,1749223843057,-440.0,0.00019726,2]
[364739149,1749223843066,-411.38752284,0.00019726,2]
[364739150,1749223843076,-440.0,0.00019726,2]
[364739151,1749223843086,-440.0,0.00019726,2]
[364739152,1749223843096,-440.0,0.00019726,2]
[364739153,1749223843105,-440.0,0.00019726,2]
[364739154,1749223843115,-440.0,0.00019726,2]
[364739155,1749223843125,-440.0,0.00019726,2]
[364739156,1749223843134,-440.0,0.00019726,2]
[364739158,1749223843144,-440.0,0.00019726,2]
[364739159,1749223843153,-440.0,0.00019726,2]
[364739160,1749223843163,-440.0,0.00019726,2]
[364739161,1749223843173,-440.0,0.00019726,2]
[364739162,1749223843183,-440.0,0.00019726,2]
[364739163,1749223843193,-440.0,0.00019726,2]
[364739164,1749223843202,-440.0,0.00019726,2]
[364739165,1749223843212,-440.0,0.00019726,2]
[364739166,1749223843222,-440.0,0.00019726,2]
[364739167,1749223843232,-440.0,0.00019726,2]
[364739168,1749223843241,-440.0,0.00019726,2]
[364739169,1749223843251,-458.47,0.00019726,2]
[364739170,1749223843261,-440.0,0.00019726,2]
[364739171,1749223843270,-494.03,0.00019726,2]
[364739172,1749223843280,-410.0,0.00019726,2]
[364739173,1749223843289,-485.38,0.00019726,2]
[364739174,1749223843299,-440.0,0.00019726,2]
[364739175,1749223843309,-440.0,0.00019726,2]
[364739176,1749223843318,-413.18104678,0.00019726,2]
[364739177,1749223843328,-410.0,0.00019726,2]
[364739178,1749223843338,-440.0,0.00019726,2]
[364739180,1749223843347,-440.0,0.00019726,2]
[364739181,1749223843357,-336.04273473,0.00019726,2]
[364739182,1749223843366,-440.0,0.00019726,2]
[364739184,1749223843376,-440.0,0.00019726,2]
[364739186,1749223843385,-440.0,0.00019726,2]
[364739188,1749223843395,-433.65111529,0.00019726,2]
[364739189,1749223843405,-440.0,0.00019726,2]
[364739190,1749223843414,-440.0,0.00019726,2]
[364739191,1749223843424,-440.0,0.00019726,2]
[364739192,1749223843433,-758.37,0.00019726,2]
[364739193,1749223843443,-440.0,0.00019726,2]
[364739194,1749223843453,-440.0,0.00019726,2]
[364739195,1749223843463,-440.0,0.00019726,2]
[364739196,1749223843473,-583.58219566,0.00019726,2]
[364739197,1749223843482,-440.0,0.00019726,2]
[364739198,1749223843493,-440.0,0.00019726,2]
[364739199,1749223843502,-440.0,0.00019726,2]
[364739200,1749223843511,-440.0,0.00019726,2]
[364739201,1749223843520,-400.0,0.00019726,2]
[364739202,1749223843529,-440.0,0.00019726,2]
[364739203,1749223843539,-747.21,0.00019726,2]
[364739204,1749223843548,-440.0,0.00019726,2]
[364739205,1749223843557,-440.0,0.00019726,2]
[364739206,1749223843567,-440.0,0.00019726,2]
[364739207,1749223843578,-410.0,0.00019726,2]
[364739208,1749223843587,-356.96991516,0.00019726,2]
[364739209,1749223843597,-440.0,0.00019726,2]
[364739210,1749223843606,-440.0,0.00019726,2]
[364739211,1749223843617,-440.0,0.00019726,2]
[364739212,1749223843626,-500.23179445,0.00019726,2]
[364739213,1749223843635,-440.0,0.00019726,2]
[364739214,1749223843644,-440.0,0.00019726,2]
[364739215,1749223843656,-440.0,0.00019726,2]
[364739216,1749223843665,-410.0,0.00019726,2]
[364739217,1749223843674,-440.0,0.00019726,2]
[364739218,1749223843683,-427.33375047,0.00019726,2]
[364739219,1749223843692,-440.0,0.00019726,2]
[364739220,1749223843702,-440.0,0.00019726,2]
[364739221,1749223843712,-440.0,0.00019726,2]
[364739222,1749223843722,-440.0,0.00019726,2]
[364739223,1749223843731,-3215.6,0.00019726,2]
[364739224,1749223843740,-410.0,0.00019726,2]
[364739225,1749223843749,-517.02,0.00019726,2]
[364739226,1749223843759,-440.0,0.00019726,2]
[364739227,1749223843768,-410.0,0.00019726,2]
[364739228,1749223843777,-857.21,0.00019726,2]
[364739229,1749223843787,-462.15082175,0.00019726,2]
[364739230,1749223843796,-729.35,0.00019726,2]
[364739231,1749223843806,-440.0,0.00019726,2]
[364739232,1749223843815,-440.0,0.00019726,2]
[364739233,1749223843825,-477.98,0.00019726,2]
[364739234,1749223843835,-410.0,0.00019726,2]
[364739235,1749223843845,-440.0,0.00019726,2]
[364739236,1749223843856,-410.0,0.00019726,2]
[364739237,1749223843866,-440.0,0.00019726,2]
[364739238,1749223843875,-440.0,0.00019726,2]
[364739239,1749223843885,-199.03950663,0.00019726,2]
[364739240,1749223843895,-572.72453924,0.00019726,2]
[364739241,1749223843904,-173.99701454,0.00019726,2]
[364739242,1749223843913,-440.0,0.00019726,2]
[364739243,1749223843923,-440.0,0.00019726,2]
[364739244,1749223843932,-1912.42,0.00019726,2]
[364739245,1749223843942,-2359.7,0.00019726,2]
[364739246,1749223843951,-7142.79,0.00019726,2]
[364739247,1749223843960,-440.0,0.00019726,2]
[364739248,1749223843971,-440.0,0.00019726,2]
[364739249,1749223843981,-440.0,0.00019726,2]
[364739250,1749223843990,-3777.35,0.00019726,2]
[364739251,1749223844000,-440.0,0.00019726,2]
[364739252,1749223844010,-400.0,0.00019726,2]
[364739253,1749223844020,-1127.7,0.00019726,2]
[364739254,1749223844029,-425.97687301,0.00019726,2]
[364739255,1749223844039,-440.0,0.00019726,2]
[364739256,1749223844049,-410.0,0.00019726,2]
[364739257,1749223844058,-440.0,0.00019726,2]
[364739258,1749223844068,-540.31986821,0.00019726,2]
[364739259,1749223844077,-440.0,0.00019726,2]
[364739260,1749223844087,-410.0,0.00019726,2]
[364739261,1749223844098,-1196.38,0.00019726,2]
[364739262,1749223844108,-588.24481015,0.00019726,2]
[364739263,1749223844118,-446.09013989,0.00019726,2]
[364739264,1749223844127,-410.0,0.00019726,2]
[364739265,1749223844137,-299.68,0.00019726,2]
[364739266,1749223844147,-410.0,0.00019726,2]
[364739267,1749223844156,-440.0,0.00019726,2]
[364739268,1749223844165,-334.35846197,0.00019726,2]
[364739269,1749223844176,-440.0,0.00019726,2]
[364739270,1749223844186,-440.0,0.00019726,2]
[364739271,1749223844195,-525.59319208,0.00019726,2]
[364739272,1749223844205,-440.0,0.00019726,2]
[364739273,1749223844215,-1802.88,0.00019726,2]
[364739274,1749223844224,-440.0,0.00019726,2]
[364739275,1749223844234,-440.0,0.00019726,2]
[364739276,1749223844244,-440.0,0.00019726,2]
[364739277,1749223844253,-440.0,0.00019726,2]
[364739278,1749223844262,-185.31940556,0.00019726,2]
[364739279,1749223844272,-562.49,0.00019726,2]
[364739280,1749223844281,-831.48,0.00019726,2]
[364739281,1749223844291,-440.0,0.00019726,2]
[364739282,1749223844301,-440.0,0.00019726,2]
[364739283,1749223844311,-440.0,0.00019726,2]
[364739284,1749223844321,-5296.18,0.00019726,2]
[364739285,1749223844330,-440.0,0.00019726,2]
[364739286,1749223844339,-249.74951083,0.00019726,2]
[364739287,1749223844348,-440.0,0.00019726,2]
[364739288,1749223844358,-2045.12,0.00019726,2]
[364739289,1749223844367,-441.66,0.00019726,2]
[364739290,1749223844376,-401.07231158,0.00019726,2]
[364739291,1749223844386,-440.0,0.00019726,2]
[364739292,1749223844395,-1764.13,0.00019726,2]
[364739293,1749223844404,-440.0,0.00019726,2]
[364739294,1749223844413,-409.04521588,0.00019726,2]
[364739295,1749223844423,-1492.68,0.00019726,2]
[364739296,1749223844433,-1126.0,0.00019726,2]
[364739297,1749223844443,-410.0,0.00019726,2]
[364739298,1749223844452,-440.0,0.00019726,2]
[364739299,1749223844461,-440.0,0.00019726,2]
[364739300,1749223844473,-434.3561871,0.00019726,2]
[364739301,1749223844482,-440.0,0.00019726,2]
[364739302,1749223844491,-410.0,0.00019726,2]
[364739303,1749223844500,-535.04528927,0.00019726,2]
[364739304,1749223844510,-440.0,0.00019726,2]
[364739305,1749223844519,-440.0,0.00019726,2]
[364739306,1749223844529,-164.96563038,0.00019726,2]
[364739307,1749223844538,-440.0,0.00019726,2]
[364739308,1749223844547,-440.0,0.00019726,2]
[364739309,1749223844557,-2306.82,0.00019726,2]
[364739310,1749223844567,-440.0,0.00019726,2]
[364739311,1749223844578,-410.0,0.00019726,2]
[364739312,1749223844588,-440.0,0.00019726,2]
[364739313,1749223844597,-440.0,0.00019726,2]
[364739314,1749223844607,-440.0,0.00019726,2]
[364739315,1749223844618,-497.01784821,0.00019726,2]
[364739316,1749223844627,-410.0,0.00019726,2]
[364739317,1749223844637,-685.82,0.00019726,2]
[364739318,1749223844647,-410.0,0.00019726,2]
[364739319,1749223844657,-2874.28,0.00019726,2]
[364739320,1749223844667,-440.0,0.00019726,2]
[364739321,1749223844676,-410.0,0.00019726,2]
[364739322,1749223844685,-3776.46,0.00019726,2]
[364739323,1749223844695,-440.0,0.00019726,2]
[364739324,1749223844704,-465.99,0.00019726,2]
[364739325,1749223844714,-440.0,0.00019726,2]
[364739326,1749223844728,-440.0,0.00019726,2]
[364739327,1749223844737,-1767.71,0.00019726,2]
[364739328,1749223844747,-440.0,0.00019726,2]
[364739329,1749223844757,-455.73,0.00019726,2]
[364739330,1749223844767,-2864.87,0.00019726,2]
[364739331,1749223844776,-440.0,0.00019726,2]
[364739332,1749223844786,-440.0,0.00019726,2]
[364739333,1749223844796,-410.0,0.00019726,2]
[364739334,1749223844805,-440.0,0.00019726,2]
[364739335,1749223844815,-338.85204523,0.00019726,2]
[364739336,1749223844824,-1011.19,0.00019726,2]
[364739337,1749223844833,-2220.42,0.00019726,2]
[364739338,1749223844843,-440.0,0.00019726,2]
[364739339,1749223844853,-440.0,0.00019726,2]
[364739340,1749223844863,-423.31274331,0.00019726,2]
[364739341,1749223844872,-800.0,0.0001988,2]
[364739342,1749223844881,-4642.42901666,0.000199,2]
[364739343,1749223844891,-410.0,0.0002,2]
[364739344,1749223844901,-440.0,0.0002,2]
[364739345,1749223844911,-440.0,0.0002,2]
[364739346,1749223844920,-440.0,0.0002,2]
[364739347,1749223844930,-400.0,0.0002,2]
[364739348,1749223844939,-557.99800971,0.0002,2]
[364739349,1749223844949,-423.72288419,0.0002,2]
[364739350,1749223844958,-440.0,0.0002,2]
[364739351,1749223844971,-400.0,0.0002,2]
[364739352,1749223844981,-440.0,0.0002,2]
[364739353,1749223844990,-440.0,0.0002,2]
[364739354,1749223844999,-418.15995988,0.0002,2]
[364739355,1749223845009,-440.0,0.0002,2]
[364739356,1749223845018,-440.0,0.0002,2]
[364739357,1749223845028,-440.0,0.0002,2]
[364739358,1749223845037,-408.33354368,0.0002,2]
[364739359,1749223845047,-440.0,0.0002,2]
[364739360,1749223845057,-440.0,0.0002,2]
[364739361,1749223845066,-409.18929194,0.0002,2]
[364739362,1749223845076,-440.0,0.0002,2]
[364739363,1749223845085,-440.0,0.0002,2]
[364739364,1749223845094,-440.0,0.0002,2]
[364739365,1749223845103,-440.0,0.0002,2]
[364739366,1749223845113,-440.0,0.0002,2]
[364739367,1749223845122,-400.0,0.0002,2]
[364739368,1749223845228,-400.0,0.0002,2]
[364739369,1749223845238,-400.0,0.0002,2]
[364739370,1749223845248,-440.0,0.0002,2]
[364739371,1749223845257,-440.0,0.0002,2]
[364739372,1749223845267,-458.47,0.0002,2]
[364739373,1749223845276,-500.0,0.0002,2]
[364739374,1749223845286,-494.03,0.0002,2]
[364739375,1749223845295,-485.38,0.0002,2]
[364739376,1749223845304,-440.0,0.0002,2]
[364739377,1749223845314,-440.0,0.0002,2]
[364739378,1749223845324,-440.0,0.0002,2]
[364739379,1749223845333,-259.37838624,0.0002,2]
[364739380,1749223845342,-440.0,0.0002,2]
[364739381,1749223845352,-440.0,0.0002,2]
[364739382,1749223845361,-440.0,0.0002,2]
[364739383,1749223845371,-440.0,0.0002,2]
[364739384,1749223845380,-440.0,0.0002,2]
[364739385,1749223845389,-440.0,0.0002,2]
[364739386,1749223845398,-758.37,0.0002,2]
[364739387,1749223845408,-440.0,0.0002,2]
[364739388,1749223845417,-440.0,0.0002,2]
[364739389,1749223845426,-440.0,0.0002,2]
[364739390,1749223845436,-440.0,0.0002,2]
[364739391,1749223845446,-440.0,0.0002,2]
[364739392,1749223845455,-260.20184727,0.0002,2]
[364739393,1749223845465,-440.0,0.0002,2]
[364739394,1749223845475,-440.0,0.0002,2]
[364739395,1749223845485,-747.21,0.0002,2]
[364739396,1749223845494,-440.0,0.0002,2]
[364739397,1749223845504,-418.77149452,0.0002,2]
[364739398,1749223845515,-440.0,0.0002,2]
[364739399,1749223845524,-400.0,0.0002,2]
[364739400,1749223845535,-440.0,0.0002,2]
[364739401,1749223845545,-440.0,0.0002,2]
[364739402,1749223845555,-440.0,0.0002,2]
[364739403,1749223845566,-440.0,0.0002,2]
[364739404,1749223845577,-440.0,0.0002,2]
[364739405,1749223845587,-436.41081921,0.0002,2]
[364739406,1749223845597,-440.0,0.0002,2]
[364739407,1749223845606,-400.0,0.0002,2]
[364739408,1749223845617,-440.0,0.0002,2]
[364739409,1749223845626,-400.0,0.0002,2]
[364739410,1749223845636,-3215.6,0.0002,2]
[364739411,1749223845645,-517.02,0.0002,2]
[364739412,1749223845657,-440.0,0.0002,2]
[364739413,1749223845666,-857.21,0.0002,2]
[364739414,1749223845676,-729.35,0.0002,2]
[364739415,1749223845685,-440.0,0.0002,2]
[364739416,1749223845696,-477.98,0.0002,2]
[364739417,1749223845706,-440.0,0.0002,2]
[364739418,1749223845716,-440.0,0.0002,2]
[364739419,1749223845727,-440.0,0.0002,2]
[364739420,1749223845737,-440.0,0.0002,2]
[364739421,1749223845747,-440.0,0.0002,2]
[364739422,1749223845757,-1912.42,0.0002,2]
[364739423,1749223845767,-2359.7,0.0002,2]
[364739424,1749223845777,-7142.79,0.0002,2]
[364739425,1749223845787,-400.0,0.0002,2]
[364739426,1749223845797,-440.0,0.0002,2]
[364739427,1749223845807,-440.0,0.0002,2]
[364739428,1749223845817,-3777.35,0.0002,2]
[364739429,1749223845827,-440.0,0.0002,2]
[364739430,1749223845837,-1127.7,0.0002,2]
[364739431,1749223845847,-440.0,0.0002,2]
[364739432,1749223845858,-440.0,0.0002,2]
[364739433,1749223845868,-440.0,0.0002,2]
[364739434,1749223845878,-1196.38,0.0002,2]
[364739435,1749223845888,-410.0,0.0002,2]
[364739436,1749223845898,-400.0,0.0002,2]
[364739437,1749223845910,-440.0,0.0002,2]
[364739438,1749223845920,-400.0,0.0002,2]
[364739439,1749223845931,-223.95390513,0.0002,2]
[364739440,1749223845941,-1802.88,0.0002,2]
[364739441,1749223845952,-260.377292,0.0002,2]
[364739442,1749223845962,-440.0,0.0002,2]
[364739443,1749223845972,-440.0,0.0002,2]
[364739444,1749223845982,-440.0,0.0002,2]
[364739445,1749223845992,-562.49,0.0002,2]
[364739446,1749223846002,-831.48,0.0002,2]
[364739447,1749223846012,-150.37968209,0.0002,7]
[364739448,1749223846022,-310.0,0.0002,2]
[364739449,1749223846032,-440.0,0.0002,2]
[364739450,1749223846042,-440.0,0.0002,2]
[364739452,1749223846052,-5296.18,0.0002,2]
[364739454,1749223846062,-275.89843857,0.0002,2]
[364739455,1749223846071,-440.0,0.0002,2]
[364739456,1749223846081,-2045.12,0.0002,2]
[364739457,1749223846091,-441.66,0.0002,2]
[364739458,1749223846100,-440.0,0.0002,2]
[364739459,1749223846110,-1764.13,0.0002,2]
[364739460,1749223846120,-400.0,0.0002,2]
[364739461,1749223846130,-1492.68,0.0002,2]
[364739462,1749223846139,-1126.0,0.0002,2]
[364739463,1749223846149,-440.0,0.0002,2]
[364739464,1749223846158,-440.0,0.0002,2]
[364739465,1749223846168,-440.0,0.0002,2]
[364739466,1749223846179,-440.0,0.0002,2]
[364739467,1749223846188,-410.74592492,0.0002,2]
[364739468,1749223846198,-440.0,0.0002,2]
[364739469,1749223846208,-440.0,0.0002,2]
[364739470,1749223846218,-2306.82,0.0002,2]
[364739471,1749223846228,-440.0,0.0002,2]
[364739472,1749223846237,-420.0,0.0002,2]
[364739473,1749223846247,-440.0,0.0002,2]
[364739474,1749223846256,-440.0,0.0002,2]
[364739475,1749223846266,-685.82,0.0002,2]
[364739476,1749223846276,-2874.28,0.0002,2]
[364739477,1749223846285,-440.0,0.0002,2]
[364739478,1749223846295,-3776.46,0.0002,2]
[364739479,1749223846304,-440.0,0.0002,2]
[364739481,1749223846314,-465.99,0.0002,2]
[364739482,1749223846323,-440.0,0.0002,2]
[364739484,1749223846332,-440.0,0.0002,2]
[364739486,1749223846342,-1767.71,0.0002,2]
[364739487,1749223846351,-440.0,0.0002,2]
[364739488,1749223846361,-455.73,0.0002,2]
[364739489,1749223846372,-2864.87,0.0002,2]
[364739490,1749223846382,-440.0,0.0002,2]
[364739491,1749223846391,-440.0,0.0002,2]
[364739492,1749223846401,-440.0,0.0002,2]
[364739493,1749223846411,-1011.19,0.0002,2]
[364739494,1749223846420,-2220.42,0.0002,2]
[364739495,1749223846430,-440.0,0.0002,2]
[364739496,1749223846440,-440.0,0.0002,2]
[364739497,1749223846450,-640.57805655,0.00020021,2]
[364739498,1749223846460,-500.0,0.00020021,2]
[364739499,1749223846470,-4642.42901656,0.00020072,2]
[364739501,1749223846479,-500.0,0.00020082,2]
[364739503,1749223846490,-151.0,0.00020082,2]
[364739504,1749223846500,-500.0,0.00020082,2]
[364739505,1749223846509,-500.0,0.00020082,2]
[364739506,1749223846519,-232.97706971,0.00020082,2]
[364739507,1749223846528,-151.0,0.00020082,2]
[364739508,1749223846538,-151.0,0.00020082,2]
[364739509,1749223846548,-198.0,0.00020082,2]